[Event "Israel National League 2024"]
[Site "Israel"]
[Date "2024.01.19"]
[Round "3.8"]
[White "Sutovsky, Emil"]
[Black "Predke, Alexandr"]
[Result "1/2-1/2"]
[ECO "B17"]
[WhiteElo "2597"]
[BlackElo "2668"]
[Annotator "TA"]
[PlyCount "116"]
[EventDate "2024.01.07"]
[EventType "team-tourn"]
[EventCountry "ISR"]
[SourceTitle "playchess.com"]
[Source "ChessBase"]
[SourceQuality "1"]
[TimeControl "40/5400+30:1800+30"]

{[%evp 16,116,40,34,35,34,41,33,46,21,62,58,71,35,31,26,46,41,47,12,10,17,9,14,33,16,21,0,24,31,24,22,22,22,24,24,24,25,37,26,29,5,25,24,24,24,24,24,27,24,24,24,24,24,24,24,24,24,24,14,24,24,33,33,33,33,33,0,33,0,33,24,39,24,24,24,27,25,25,25,27,27,29,24,24,24,24,24,24,24,24,24,27,27,27,32,32,27,27,27,27,0,28]} 1. e4 {[%emt 0:00:04]} c6 {[%emt 0:01:31]} 2. d4 {[%emt 0:03:55]} d5 {[%emt 0:00:07]} 3. Nc3 {[%emt 0:01:19]} dxe4 {[%emt 0:01:38]} 4. Nxe4 {[%emt 0:00:25]} Nd7 {[%emt 0:00:11][%cal Bb8d7,Bd7f6,Bf6e4][%mdl 32]} 5. Nf3 {[%emt 0:01:10]} Ngf6 {[%emt 0:00:07]} 6. Nxf6+ {[%emt 0:00:32]} Nxf6 {[%emt 0:00:06]} 7. c3 {[%emt 0:00:19]} Bg4 {[%emt 0:00:26]} 8. h3 {[%emt 0:00:56]} Bxf3 {[%emt 0:00:11]} 9. Qxf3 {[%emt 0:00:04]} Qd5 {[%emt 0:00:13] B17: Caro-Kann: Modern Line (4...Nd7).} 10. Be2 {[%emt 0:00:29]} e6 {[%emt 0:00:18]} 11. Qg3 {[%emt 0:02:51]} Ne4 {[%emt 0:12:13] [#] White is slightly better.} 12. Qd3 $146 {[%emt 0:08:24]} ({Predecessor:} 12. Qe3 Nf6 13. O-O Bd6 14. Bf3 Qf5 15. Qg5 Qxg5 16. Bxg5 {½-½ Luther,T (2525)-Schlosser,P (2550) Lippstadt 1997 (9)}) 12... Nd6 {[%emt 0:00:08]} 13. O-O {[%emt 0:04:42]} Qf5 {[%emt 0:00:39]} 14. Qxf5 {[%emt 0:07:53]} Nxf5 {[%emt 0:00:12]} 15. g4 {[%emt 0:02:58]} Nd6 {[%emt 0:13:18]} 16. c4 {[%emt 0:00:29]} Be7 {[%emt 0:07:28]} 17. d5 {[%emt 0:04:28]} cxd5 {[%emt 0:10:14]} ({Don't play} 17... exd5 18. cxd5 c5 19. Bf4 $14) 18. cxd5 {[%emt 0:01:11]} e5 $1 {[%emt 0:00:04] Dodges Bf4} ({Don't take} 18... exd5 19. Rd1 $16) 19. f4 {[%emt 0:02:10]} exf4 {[%emt 0:01:51]} 20. Bxf4 {[%emt 0:00:10]} O-O {[%emt 0:02:17]} 21. g5 {[%emt 0:08:17]} Rfc8 {[%emt 0:11:51]} 22. Rac1 {[%emt 0:19:59] Wards off Rc2} Rxc1 {[%emt 0:00:37]} 23. Rxc1 {[%emt 0:00:02]} Rc8 {[%emt 0:00:06] Dodges Rc7} 24. Rxc8+ {[%emt 0:03:35]} Nxc8 $11 {[%emt 0:00:04][%mdl 4096] Endgame KBB-KBN} 25. Be3 {[%emt 0:03:06]} b6 {[%emt 0:05:22]} 26. Kg2 {[%emt 0:02:15]} Bc5 {[%emt 0:08:14]} 27. Bd2 {[%emt 0:01:48]} Kf8 {[%emt 0:09:49]} 28. Bc3 {[%emt 0:04:04]} Be7 {[%emt 0:01:23]} 29. Ba6 {[%emt 0:01:30]} Nd6 {[%emt 0:00:06]} 30. Be5 {[%emt 0:00:16]} g6 {[%emt 0:06:18]} 31. Kf3 {[%emt 0:00:09]} Ke8 {[%emt 0:01:00]} 32. Kf4 {[%emt 0:01:17]} Bf8 {[%emt 0:01:39]} 33. Be2 {[%emt 0:09:57]} h6 {[%emt 0:00:38]} 34. h4 {[%emt 0:01:53]} hxg5+ 35. hxg5 {[%emt 0:00:02]} Be7 {[%emt 0:01:05]} 36. Bd1 {[%emt 0:00:09]} Kd8 {[%emt 0:03:38]} 37. Ba4 {[%emt 0:00:05]} Bf8 {[%emt 0:02:34]} 38. Bc6 {[%emt 0:00:41]} a5 {[%emt 0:01:08]} 39. Bd4 {[%emt 0:00:52]} Kc7 {[%emt 0:00:04]} 40. Bf6 {[%emt 0:00:11]} Kc8 {[%emt 0:00:40]} 41. Bd4 {[%emt 0:06:33]} Kc7 {[%emt 0:02:01]} 42. Be5 {[%emt 0:01:13]} Kd8 {[%emt 0:00:36]} 43. b3 {[%emt 0:01:10]} Kc8 {[%emt 0:01:34]} 44. Bd4 {[%emt 0:04:14]} Kc7 {[%emt 0:00:06]} 45. Bb2 {[%emt 0:00:16]} Kd8 {[%emt 0:04:28]} 46. Ba3 {[%emt 0:02:54]} Ke7 {[%emt 0:02:08]} 47. Bc1 {[%emt 0:00:31]} Kd8 {[%emt 0:01:28]} 48. Ke5 {[%emt 0:02:32] Strongly threatening Be3.} Be7 {[%emt 0:00:13]} 49. Bb2 {[%emt 0:08:29]} Nf5 {[%emt 0:02:11]} 50. Kf4 {[%emt 0:03:07]} Kc7 {[%emt 0:01:27]} 51. Be8 {[%emt 0:02:40]} Nd6 {[%emt 0:00:08]} 52. Be5 {[%emt 0:00:46]} Kd8 $1 {[%emt 0:00:08]} 53. Bc6 {[%emt 0:00:06]} Bf8 {[%emt 0:00:45]} 54. Bf6+ {[%emt 0:02:36]} Kc7 {[%emt 0:00:32]} 55. Kg4 {[%emt 0:02:56]} Kc8 {[%emt 0:00:25]} 56. Be5 {[%emt 0:00:25] Threatens to win with Bxd6. A strong pair of Bishops.} Kd8 $1 {[%emt 0:00:12]} 57. Bd4 {[%emt 0:01:36]} Kc7 {[%emt 0:00:06]} 58. Be5 {[%emt 0:01:51]} Kd8 {[%emt 0:00:07] Against Be8.   Weighted Error Value: White=0.07 (flawless) /Black=0.04 (flawless)} 1/2-1/2

[Event "Israel National League 2024"]
[Site "Israel"]
[Date "2024.01.19"]
[Round "3.9"]
[White "Roiz, Michael"]
[Black "Smirin, Ilia"]
[Result "1/2-1/2"]
[ECO "D43"]
[WhiteElo "2575"]
[BlackElo "2582"]
[Annotator "TA"]
[PlyCount "37"]
[EventDate "2024.01.07"]
[EventType "team-tourn"]
[EventCountry "ISR"]
[SourceTitle "playchess.com"]
[Source "ChessBase"]
[SourceQuality "1"]
[TimeControl "40/5400+30:1800+30"]

{[%evp 16,37,8,0,31,17,8,8,12,11,10,15,9,11,1,7,19,10,16,10,13,12,17,3]} 1. d4 {[%emt 0:00:03]} Nf6 {[%emt 0:05:54]} 2. c4 {[%emt 0:00:13]} e6 {[%emt 0:03:42]} 3. Nf3 {[%emt 0:02:52]} d5 {[%emt 0:00:47]} 4. Nc3 {[%emt 0:01:51]} c6 {[%emt 0:00:30]} 5. Bg5 {[%emt 0:01:50]} h6 {[%emt 0:01:30]} 6. Bxf6 {[%emt 0:06:39]} Qxf6 {[%emt 0:00:22]} 7. g3 {[%emt 0:00:03]} Nd7 {[%emt 0:01:45]} 8. Bg2 {[%emt 0:02:23]} dxc4 {[%emt 0:01:54]} 9. O-O {[%emt 0:01:59]} Bb4 {[%emt 0:06:21] D43: Semi-Slav: 5 Bg5 h6.} 10. Rc1 {[%emt 0:12:25]} (10. Ne4 $5 {[%cal Re4f6]} Qd8 11. Ne5 $11) 10... Qe7 {[%emt 0:03:40] [#] The position is equal.} 11. Nd2 $146 {[%emt 0:03:30]} ({Predecessor:} 11. Ne4 b5 12. b3 cxb3 13. Qxb3 Bb7 14. Rfd1 O-O 15. Nc5 Bxc5 16. dxc5 Rfd8 17. Qe3 {0-1 Martirosyan,H (2622)-Keymer,V (2568) Chess.com U20 Speed blitz 2020 (1.21)}) 11... Nb6 {[%emt 0:06:33]} 12. a3 {[%emt 0:05:49]} Bxc3 {[%emt 0:08:47]} 13. Rxc3 {[%emt 0:01:05]} O-O {[%emt 0:00:18]} 14. Nxc4 {[%emt 0:01:37]} Nxc4 {[%emt 0:00:56]} 15. Rxc4 {[%emt 0:00:22]} e5 {[%emt 0:00:14]} 16. dxe5 {[%emt 0:17:25]} Qxe5 {[%emt 0:01:03]} 17. Qd2 {[%emt 0:00:38]} Be6 {[%emt 0:03:16]} 18. Rd4 {[%emt 0:00:05]} Qc7 {[%emt 0:03:23]} 19. e3 {[%emt 0:04:25] A rather calm draw.   Weighted Error Value: White=0.03 (flawless) /Black=0.04 (flawless)} 1/2-1/2

[Event "Israel National League 2024"]
[Site "Israel"]
[Date "2024.01.19"]
[Round "3.10"]
[White "Globus, Or"]
[Black "Steinberg, Nitzan"]
[Result "0-1"]
[ECO "D11"]
[WhiteElo "2434"]
[BlackElo "2551"]
[Annotator "TA"]
[PlyCount "113"]
[EventDate "2024.01.07"]
[EventType "team-tourn"]
[EventCountry "ISR"]
[SourceTitle "playchess.com"]
[Source "ChessBase"]
[SourceQuality "1"]
[TimeControl "40/5400+30:1800+30"]

{[%evp 9,113,7,23,7,36,15,17,6,8,-15,0,0,0,2,4,0,21,9,0,-32,-12,-15,-31,-32,-31,-47,-12,-32,0,0,0,0,0,0,0,0,0,-22,-16,-7,-10,-10,-9,-33,-15,-24,-14,-43,-59,-74,-66,-71,-70,-69,-67,-64,-60,-117,-120,-122,-129,-132,-120,-102,-58,-70,-60,-62,-24,-33,20,20,118,95,147,147,147,147,302,302,290,264,293,275,304,251,243,-38,0,0,0,-85,-23,-116,-100,-171,-171,-187,-153,-170,-183,-165,-151,-519,-261,-74]} 1. d4 {[%emt 0:00:06]} d5 {[%emt 0:02:04]} 2. c4 {[%emt 0:00:48]} c6 {[%emt 0:01:38]} 3. Nf3 {[%emt 0:03:17]} Nf6 {[%emt 0:01:25]} 4. g3 {[%emt 0:02:44]} g6 {[%emt 0:01:02]} 5. Bg2 {[%emt 0:00:26]} dxc4 {[%emt 0:02:30]} 6. O-O {[%emt 0:13:11] D11: Slav Defence: 3 Nf3 sidelines and 3...Nf6 4 e3 Bg4.} Bg7 {[%emt 0:00:03]} 7. a4 {[%emt 0:01:16]} Ne4 {[%emt 0:00:05]} 8. Qc2 {[%emt 0:17:45] The position is equal.} Nd6 {[%emt 0:00:25]} 9. Nbd2 {[%emt 0:00:13] [#]} a5 $1 $146 {[%emt 0:14:49][%mdl 8] A relevant novelty.} ({Predecessor:} 9... O-O 10. a5 Be6 11. Ng5 Bg4 12. Ngf3 Na6 13. h3 Be6 14. Rd1 c5 15. dxc5 Nxc5 {0-1 Paragua,M (2513)-Smirnov,A (2597) Online Olym Div2 A rapid 2020 (6.1)}) 10. Nxc4 {[%emt 0:03:09]} Na6 {[%emt 0:00:50]} 11. Nxd6+ {[%emt 0:05:20]} exd6 {[%emt 0:02:13]} 12. Bg5 {[%emt 0:03:50]} Qc7 {[%emt 0:09:48]} 13. Qe4+ {[%emt 0:10:06]} Be6 {[%emt 0:00:19]} 14. d5 {[%emt 0:00:26]} cxd5 {[%emt 0:03:57]} 15. Qf4 {[%emt 0:05:53]} O-O {[%emt 0:00:38]} 16. Rac1 {[%emt 0:04:31]} Qd7 {[%emt 0:02:36]} 17. Bh6 {[%emt 0:03:53]} Nb4 {[%emt 0:09:35][%cal Og7b2]} (17... Bxb2 {is more complex.} 18. Nd4 Bxc1 19. Rxc1 Qe7) 18. Qh4 {[%emt 0:06:24]} f6 {[%emt 0:08:16]} (18... Qxa4 19. Ng5 (19. Bxg7 Kxg7 20. Ng5 h5 $11) 19... Bf6 20. Bxf8 Bxg5 21. Qxg5 $16) 19. Bxg7 {[%emt 0:01:37]} Kxg7 {[%emt 0:00:17]} 20. Nd4 {[%emt 0:04:00][%cal Oc1c7]} Rfc8 {[%emt 0:03:28] Prevents Rc7.} 21. Qf4 {[%emt 0:00:47]} Bg8 {[%emt 0:05:40]} 22. h4 {[%emt 0:02:15][%cal Oh4h5]} h5 {[%emt 0:03:47]} 23. Kh2 {[%emt 0:01:14]} Rc5 {[%emt 0:02:07]} (23... Rc4 {feels hotter.} 24. Rfd1 Re8 25. Bf3 Rc5) 24. Nb5 {[%emt 0:02:01]} Rd8 {[%emt 0:02:39]} 25. Rfd1 {[%emt 0:02:17]} Qe7 {[%emt 0:01:16]} 26. Nd4 {[%emt 0:02:33]} Bf7 {[%emt 0:05:09]} 27. Rc3 {[%emt 0:00:52]} Nc6 {[%emt 0:02:20][%cal Bb4c6,Bc6e5,Be5c4,Bc4b2][%mdl 32]} 28. e3 {[%emt 0:02:03]} Ne5 {[%emt 0:01:13]} 29. Kg1 {[%emt 0:01:24]} Rdc8 {[%emt 0:00:47]} 30. Nb5 $1 {[%emt 0:00:20][%cal Og2d5]} Rc4 {[%emt 0:05:40]} 31. Rd4 {[%emt 0:00:02]} R8c5 {[%emt 0:02:38]} 32. Rcxc4 {[%emt 0:00:59]} Nxc4 {[%emt 0:00:30]} (32... Rxc4 {simplifies} 33. Rxc4 dxc4 34. Qd4 d5) 33. Nc3 {[%emt 0:00:26]} (33. b3 $1 $15 Ne5 34. Rd1) 33... Nxb2 {[%emt 0:03:00]} 34. Nxd5 {[%emt 0:00:38]} Qe5 {[%emt 0:00:32][%cal Rf7d5]} 35. Nb6 {[%emt 0:00:26][%csl LRb7,LRd6]} d5 $1 {[%emt 0:02:07]} 36. Bf3 {[%emt 0:00:46]} Be6 {[%emt 0:01:41]} 37. Kg2 {[%emt 0:00:21]} Qxf4 {[%emt 0:01:21]} 38. gxf4 {[%emt 0:00:15]} Kf7 {[%emt 0:00:17]} (38... Bf7 $5 {[%cal Rc5c6]}) 39. f5 {[%emt 0:00:33]} gxf5 {[%emt 0:00:44]} (39... Bxf5 $15 40. Bxd5+ Be6) 40. Nxd5 $11 {[%emt 0:00:51]} Nxa4 {[%emt 0:00:31]} 41. Bxh5+ $16 {[%emt 0:08:32]} Kg7 {[%emt 0:06:56]} (41... Kf8 $142 42. Nf4 (42. Nxf6 Rc4 $17) 42... Bc4) 42. Nf4 {[%emt 0:02:37][%mdl 1024] White has strong compensation.} Bc4 {[%emt 0:00:00]} 43. Rd7+ {[%emt 0:01:30]} Kh6 $2 {[%emt 0:05:48]} (43... Kh8 $16 44. Bg6 (44. Rxb7 Nc3 $16) 44... Nb6 45. Rh7+ (45. Rxb7 Bd5+ 46. Nxd5 Nxd5 $16) 45... Kg8) 44. Bg6 $1 $18 {[%emt 0:09:40][%csl Gg6][%cal Rd7h7]} (44. Rxb7 Nc3 $14) 44... Bg8 {[%emt 0:00:01] Repels Rh7+} 45. Rd8 $1 {[%emt 0:01:52]} (45. Rxb7 Bd5+ 46. Nxd5 Rxd5 $16) 45... Bd5+ {[%emt 0:00:05]} 46. Kg3 {[%emt 0:02:08]} Nc3 {[%emt 0:00:27]} 47. f3 {[%emt 0:01:37] Inhibits Ne4+. Rh8+ is the strong threat.} (47. Bxf5 a4 $11) (47. Rh8+ Kg7 48. Rh7+ Kg8 $16) 47... a4 {[%emt 0:01:40][%cal Ba5a4,Ba4a3,Ba3a2][%mdl 32]} 48. Rd7 $2 {[%emt 0:05:07]} ({Better is} 48. h5 $18 {aiming for Rh8+.} Bc4 49. Rh8+ Kg7 50. Rh7+ {[%mdl 64] Skewer} Kg8 51. Rxb7 Ne2+ 52. Nxe2 Bxe2 53. Ra7) 48... Bg8 {[%emt 0:00:05]} (48... Ne2+ $5 49. Nxe2 Bc6 $11) 49. Rd8 $1 {[%emt 0:00:29]} Bc4 {[%emt 0:08:26]} 50. Rh8+ {[%emt 0:01:08]} (50. Ra8 $5 {[%cal Rh4h5]}) 50... Kg7 {[%emt 0:00:04]} 51. Rh7+ {[%emt 0:00:03] [#]} (51. Ra8 $1 $11) 51... Kf8 $1 $17 {[%emt 0:00:33] Hoping for ...a3.} 52. Rxb7 {[%emt 0:01:13]} (52. Rh8+ $17 Ke7 53. Re8+ (53. Rh7+ $2 Kd6 $19) 53... Kd6 54. Ra8) 52... a3 $19 {[%emt 0:00:08] And now ...Ra5 would win.} 53. h5 {[%emt 0:00:27] [#] Black must now prevent h6.} a2 $1 {[%emt 0:00:04]} 54. Ra7 {[%emt 0:00:07] Strongly threatening h6.} Nb5 {[%emt 0:02:54]} 55. Ra8+ {[%emt 0:00:53]} Kg7 {[%emt 0:00:05]} 56. e4 $2 {[%emt 0:00:32]} ({Don't blunder} 56. Ra5 $2 Rc7 57. Bxf5 Ra7 $19) (56. Nd3 $17 Bxd3 57. Rxa2) 56... Rc7 {[%emt 0:01:42]} 57. exf5 {[%emt 0:01:07] Quite a comeback for Black.   Weighted Error Value: White=0.26 (precise) /Black=0.21 (precise)} 0-1

[Event "Israel National League 2024"]
[Site "Israel"]
[Date "2024.01.19"]
[Round "3.11"]
[White "Kobo, Ori"]
[Black "Alekseev, Evgeny"]
[Result "1/2-1/2"]
[ECO "D79"]
[WhiteElo "2541"]
[BlackElo "2563"]
[Annotator "TA"]
[PlyCount "40"]
[EventDate "2024.01.07"]
[EventType "team-tourn"]
[EventCountry "ISR"]
[SourceTitle "playchess.com"]
[Source "ChessBase"]
[SourceQuality "1"]
[TimeControl "40/5400+30:1800+30"]

{[%evp 20,29,29,8,6,0,0,-37,-45,-36,-40,-45]} 1. Nf3 {[%emt 0:00:07]} d5 {[%emt 0:01:10]} 2. g3 {[%emt 0:00:22]} g6 {[%emt 0:01:19]} 3. Bg2 {[%emt 0:00:18]} Bg7 {[%emt 0:04:14]} 4. d4 {[%emt 0:00:31]} Nf6 {[%emt 0:00:32]} 5. c4 {[%emt 0:01:06]} c6 {[%emt 0:01:29]} 6. cxd5 {[%emt 0:00:25]} cxd5 {[%emt 0:01:35]} 7. Nc3 {[%emt 0:00:08]} O-O {[%emt 0:03:34]} 8. Ne5 {[%emt 0:00:31]} e6 {[%emt 0:06:02]} 9. O-O {[%emt 0:01:18]} Nfd7 {[%emt 0:03:55]} 10. f4 {[%emt 0:00:12]} Nc6 {[%emt 0:01:05]} 11. Be3 {[%emt 0:00:20]} Ne7 {[%emt 0:09:58] D79: Fianchetto Grünfeld: Symmetrical Variation (6 0-0 c6 7 cxd5 cxd5).} 12. Bf2 {[%emt 0:07:52]} Nf6 {[%emt 0:07:49]} 13. e4 {[%emt 0:24:28]} b6 {[%emt 0:07:50]} 14. exd5 {[%emt 0:14:18]} Nfxd5 {[%emt 0:10:13]} 15. Nxd5 {[%emt 0:09:55] [#] Black took control after the opening.   Weighted Error Value: White=0.16 (very precise) /Black=0.00 (flawless)} {Predecessor:} Nxd5 $146 16. Rc1 Bb7 17. Qa4 Qe7 18. Rc2 Rfc8 19. Rfc1 Rxc2 20. Rxc2 a6 {1-0 Ding,L (2777)-Ivanchuk,V (2726) Huaian IMSA blitz 2nd 2017 (10.5)} 1/2-1/2

[Event "Israel National League 2024"]
[Site "Israel"]
[Date "2024.01.19"]
[Round "3.12"]
[White "Caspi, Israel"]
[Black "Postny, Evgeny"]
[Result "1/2-1/2"]
[ECO "E25"]
[WhiteElo "2468"]
[BlackElo "2597"]
[Annotator "TA"]
[PlyCount "35"]
[EventDate "2024.01.07"]
[EventType "team-tourn"]
[EventCountry "ISR"]
[SourceTitle "playchess.com"]
[Source "ChessBase"]
[SourceQuality "1"]
[TimeControl "40/5400+30:1800+30"]

{[%evp 21,35,0,16,0,0,0,0,0,0,0,8,0,0,-2,18,0]} 1. d4 {[%emt 0:00:04]} Nf6 {[%emt 0:00:25]} 2. c4 {[%emt 0:00:06]} e6 {[%emt 0:00:06]} 3. Nc3 {[%emt 0:00:05]} Bb4 {[%emt 0:00:06]} 4. a3 {[%emt 0:00:04]} Bxc3+ {[%emt 0:00:07]} 5. bxc3 {[%emt 0:00:06]} c5 {[%emt 0:05:20]} 6. f3 {[%emt 0:00:11]} d5 {[%emt 0:00:35]} 7. cxd5 {[%emt 0:00:09]} Nxd5 {[%emt 0:03:27]} 8. dxc5 {[%emt 0:00:31]} Qa5 {[%emt 0:00:11]} 9. e4 {[%emt 0:00:42]} Nf6 {[%emt 0:00:08]} 10. Be3 {[%emt 0:01:53]} O-O {[%emt 0:00:50]} 11. Qb3 {[%emt 0:03:01]} Nfd7 {[%emt 0:04:14] The position is equal.} 12. Bb5 {[%emt 0:10:38] E25: Nimzo-Indian: Sämisch: 5...c5 6 f3 d5 7 cxd5.} Qc7 {[%emt 0:09:38]} 13. Qb4 {[%emt 0:07:03]} Nc6 {[%emt 0:18:00] [#]} 14. Qa4 $146 {[%emt 0:15:48]} ({Predecessor:} 14. Bxc6 bxc6 15. Qa4 a5 16. Ne2 Ba6 17. Kf2 Ne5 18. Nf4 Nc4 19. Rab1 Rfd8 20. Rhd1 Rxd1 21. Qxd1 Nxa3 {0-1 Chirila,I (2536)-Olafsson,H (2512) Titled Tuesday intern Qual4 25th April blitz 2017 (3)}) 14... Nce5 {[%emt 0:03:32]} 15. Qd4 {[%emt 0:04:26]} Nc6 {[%emt 0:03:54] Excellent horsemanship.} 16. Qa4 {[%emt 0:08:23]} Nce5 {[%emt 0:00:37]} 17. Qd4 {[%emt 0:00:42]} Nc6 {[%emt 0:00:33]} 18. Qa4 {[%emt 0:03:53] An uneventful encounter.   Weighted Error Value: White=0.04 (flawless) /Black=0.06 (flawless)} 1/2-1/2

[Event "Israel National League 2024"]
[Site "Israel"]
[Date "2024.01.19"]
[Round "3.13"]
[White "Rodshtein, Maxim"]
[Black "Greenfeld, Alon"]
[Result "1-0"]
[ECO "D33"]
[WhiteElo "2580"]
[BlackElo "2455"]
[Annotator "TA"]
[PlyCount "57"]
[EventDate "2024.01.07"]
[EventType "team-tourn"]
[EventCountry "ISR"]
[SourceTitle "playchess.com"]
[Source "ChessBase"]
[SourceQuality "1"]
[TimeControl "40/5400+30:1800+30"]

{[%evp 16,57,34,40,45,40,33,25,44,22,24,14,13,18,10,9,16,0,16,0,22,22,22,22,23,23,23,23,23,15,24,23,23,23,26,26,23,6,96,96,1104,1089,920,888]} 1. d4 {[%emt 0:00:10]} d5 {[%emt 0:02:19]} 2. c4 {[%emt 0:01:06]} e6 {[%emt 0:00:56]} 3. Nc3 {[%emt 0:02:50]} c5 {[%emt 0:03:29]} 4. cxd5 {[%emt 0:07:36]} exd5 {[%emt 0:01:08]} 5. Nf3 {[%emt 0:08:56][%cal Bg1f3,Bf3d4,Bd4b3][%mdl 32]} Nc6 {[%emt 0:03:18]} 6. g3 {[%emt 0:03:59]} Nf6 {[%emt 0:00:41]} 7. Bg2 {[%emt 0:00:18]} cxd4 {[%emt 0:00:40]} 8. Nxd4 {[%emt 0:00:05]} Bc5 {[%emt 0:00:14]} 9. Nb3 {[%emt 0:06:07][%csl LRc5,LRd5]} (9. Be3 {looks sharper.} Qb6 10. Na4 Qa5+ 11. Bd2) 9... Bb6 {[%emt 0:01:26] D33: Tarrasch Defence: 6 g3 sidelines.} 10. Na4 {[%emt 0:00:17]} ({But not} 10. Bxd5 Nb4 11. Bf3 Qxd1+ 12. Kxd1 Ng4 13. Bxg4 Bxg4 $11) 10... O-O {[%emt 0:07:03][%cal Bh8f8,Bf8e8,Be8e2][%mdl 32]} 11. Nxb6 {[%emt 0:01:04]} axb6 {[%emt 0:00:13] White has an edge.} 12. Nd4 $5 {[%emt 0:08:50][%mdl 4] A promising side line.} Re8 {[%emt 0:04:18]} 13. O-O {[%emt 0:06:12]} Nxd4 {[%emt 0:04:44][%mdl 64] Remove Defender} 14. Qxd4 {[%emt 0:00:13]} Rxe2 {[%emt 0:01:04]} 15. Be3 {[%emt 0:01:22]} Rc2 {[%emt 0:02:04] [#]} 16. Qb4 $146 {[%emt 0:14:18]} ({Predecessor:} 16. Rfc1 Rxc1+ 17. Rxc1 Bd7 18. Qxb6 Qxb6 19. Bxb6 Rxa2 20. Bd4 Bc6 21. b4 Ra4 22. Bxf6 gxf6 {½-½ Giri,A (2777)-Carlsen,M (2855) Meltwater Tour Final rapid 2021 (6.3)}) 16... Rc6 {[%emt 0:28:59]} 17. Rfc1 {[%emt 0:10:12]} Rxc1+ {[%emt 0:02:23]} 18. Rxc1 {[%emt 0:00:20]} Rxa2 {[%emt 0:01:21]} 19. Bxb6 $40 {[%emt 0:11:56][%mdl 128] White mounts an attack.} Qe8 {[%emt 0:02:51]} 20. Qb3 {[%emt 0:02:18][%csl LRa2,LRd5]} Ra6 {[%emt 0:04:45]} 21. Bf1 {[%emt 0:00:16] A strong pair of Bishops.} Ra8 {[%emt 0:00:17]} 22. Bd4 {[%emt 0:00:07]} Qe7 {[%emt 0:08:41]} 23. Bxf6 {[%emt 0:01:18]} gxf6 {[%emt 0:01:41]} 24. Qxd5 {[%emt 0:00:06]} Be6 {[%emt 0:01:13]} 25. Qe4 {[%emt 0:01:27]} Rd8 {[%emt 0:02:46]} 26. Re1 {[%emt 0:03:43]} Rd2 {[%emt 0:04:18] [#]} (26... Qd7 $11 {remains equal.}) 27. Bd3 $1 $16 {[%emt 0:03:39]} Kf8 $2 {[%emt 0:05:35][%mdl 8192]} (27... f5 $16 28. Qe3 Rxb2) 28. Qxh7 $18 {[%emt 0:00:56][%cal Rh7h8]} Qb4 {[%emt 0:00:40] [#]} 29. Rxe6 $1 {[%emt 0:00:51][%mdl 576] Deflection.   Weighted Error Value: White=0.05 (flawless) /Black=0.13 (very precise)} 1-0